fUST/lending_fUST_20251010
["ID","MTS","AMOUNT","RATE_DAILY","PERIOD"]
[390370961,1760032247584,-500.0,0.00016438,2]
[390370963,1760032247594,-836.97,0.00016438,2]
[390370964,1760032247604,-500.0,0.00016438,2]
[390370966,1760032247614,-500.0,0.00016438,2]
[390370968,1760032247624,-500.0,0.00016438,2]
[390370971,1760032247635,-500.0,0.00016438,2]
[390370973,1760032247645,-500.0,0.00016438,2]
[390370974,1760032247656,-500.0,0.00016438,2]
[390370977,1760032247670,-500.0,0.00016438,2]
[390370979,1760032247680,-796.58,0.00016438,2]
[390370981,1760032247690,-500.0,0.00016438,2]
[390370982,1760032247700,-500.0,0.00016438,2]
[390370985,1760032247711,-500.0,0.00016438,2]
[390370987,1760032247720,-500.0,0.00016438,2]
[390370989,1760032247730,-1002.91,0.00016438,2]
[390370990,1760032247740,-500.0,0.00016438,2]
[390370992,1760032247750,-500.0,0.00016438,2]
[390370994,1760032247759,-585.8,0.00016438,2]
[390370996,1760032247769,-4599.23,0.00016438,2]
[390370998,1760032247780,-849.82,0.00016438,2]
[390371000,1760032247789,-500.0,0.00016438,2]
[390371002,1760032247799,-500.0,0.00016438,2]
[390371004,1760032247808,-500.0,0.00016438,2]
[390371006,1760032247817,-511.54,0.00016438,2]
[390371008,1760032247827,-500.0,0.00016438,2]
[390371011,1760032247839,-501.87399608,0.00016438,2]
[390371012,1760032247850,-1589.21,0.00016438,2]
[390371014,1760032247860,-5967.16,0.00016438,2]
[390371016,1760032247870,-500.0,0.00016438,2]
[390371018,1760032247881,-2413.16,0.00016438,2]
[390371020,1760032247891,-539.76,0.00016438,2]
[390371022,1760032247902,-500.0,0.00016438,2]
[390371024,1760032247917,-500.0,0.00016438,2]
[390371026,1760032247928,-500.0,0.00016438,2]
[390371028,1760032247938,-500.0,0.00016438,2]
[390371030,1760032247949,-1656.72,0.00016438,2]
[390371032,1760032247960,-1158.22,0.00016438,2]
[390371034,1760032247969,-1916.39,0.00016438,2]
[390371036,1760032247978,-654.36,0.00016438,2]
[390371038,1760032247988,-895.21,0.00016438,2]
[390371040,1760032247997,-500.0,0.00016438,2]
[390371042,1760032248006,-1087.8,0.00016438,2]
[390371044,1760032248016,-500.0,0.00016438,2]
[390371046,1760032248025,-500.0,0.00016438,2]
[390371048,1760032248034,-514.87,0.00016438,2]
[390371050,1760032248044,-500.0,0.00016438,2]
[390371052,1760032248053,-1787.1,0.00016438,2]
[390371054,1760032248062,-500.0,0.00016438,2]
[390371056,1760032248071,-526.42,0.00016438,2]
[390371058,1760032248080,-500.0,0.00016438,2]
[390371060,1760032248089,-500.0,0.00016438,2]
[390371062,1760032248098,-669.14,0.00016438,2]
[390371064,1760032248108,-500.0,0.00016438,2]
[390371066,1760032248118,-687.95,0.00016438,2]
[390371068,1760032248127,-513.61,0.00016438,2]
[390371069,1760032248136,-714.48,0.00016438,2]
[390371071,1760032248145,-500.0,0.00016438,2]
[390371073,1760032248154,-916.57,0.00016438,2]
[390371075,1760032248164,-500.0,0.00016438,2]
[390371077,1760032248173,-516.03,0.00016438,2]
[390371079,1760032248182,-772.16,0.00016438,2]
[390371081,1760032248191,-580.02,0.00016438,2]
[390371083,1760032248200,-518.85,0.00016438,2]
[390371085,1760032248210,-500.0,0.00016438,2]
[390371087,1760032248220,-470.42829399,0.00016438,2]
[390371089,1760032248232,-3271.62,0.00016438,2]
[390371091,1760032248241,-500.0,0.00016438,2]
[390371093,1760032248251,-500.0,0.00016438,2]
[390371095,1760032248260,-500.0,0.00016438,2]
[390371097,1760032248270,-500.0,0.00016438,2]
[390371099,1760032248279,-500.0,0.00016438,2]
[390371101,1760032248289,-518.4,0.00016438,2]
[390371103,1760032248299,-1739.15,0.00016438,2]
[390371105,1760032248309,-627.5,0.00016438,2]
[390371107,1760032248317,-771.2,0.00016438,2]
[390371109,1760032248326,-500.0,0.00016438,2]
[390371111,1760032248338,-647.12,0.00016438,2]
[390371113,1760032248349,-500.0,0.00016438,2]
[390371116,1760032248359,-1683.54,0.00016438,2]
[390371117,1760032248368,-607.24,0.00016438,2]
[390371119,1760032248378,-500.0,0.00016438,2]
[390371121,1760032248387,-561.03595593,0.00016438,2]
[390371123,1760032248396,-500.0,0.00016438,2]
[390371125,1760032248406,-399.90257826,0.00016438,2]
[390371127,1760032248415,-1874.07,0.00016438,2]
[390371129,1760032248424,-1857.75,0.00016438,2]
[390371131,1760032248435,-2208.79,0.00016438,2]
[390371133,1760032248444,-500.0,0.00016438,2]
[390371135,1760032248453,-500.0,0.00016438,2]
[390371137,1760032248462,-1951.45,0.00016438,2]
[390371139,1760032248471,-914.87,0.00016438,2]
[390371141,1760032248480,-500.0,0.00016438,2]
[390371143,1760032248489,-500.0,0.00016438,2]
[390371145,1760032248498,-500.0,0.00016438,2]
[390371147,1760032248507,-500.0,0.00016438,2]
[390371149,1760032248516,-500.0,0.00016438,2]
[390371151,1760032248528,-1000.0,0.00016438,2]
[390371153,1760032248537,-2880.45,0.00016438,2]
[390371155,1760032248546,-753.81,0.00016438,2]
[390371157,1760032248555,-3431.86,0.00016438,2]
[390371159,1760032248564,-2088.23,0.00016438,2]
[390371161,1760032248572,-907.73,0.00016438,2]
[390371163,1760032248583,-1000.0,0.00016438,2]
[390371165,1760032248593,-1358.68037159,0.00016485,2]
[390371167,1760032248602,-38780.8472042,0.00016605,2]
[390371169,1760032248611,-1996.6910769,0.00016693,2]
[390371171,1760032248620,-500.0,0.00016712,2]
[390371173,1760032248629,-500.0,0.00016712,2]
[390371175,1760032248639,-500.0,0.00016712,2]
[390371177,1760032248647,-500.0,0.00016712,2]
[390371179,1760032248657,-500.0,0.00016712,2]
[390371180,1760032248666,-572.47588537,0.00016712,2]
[390371182,1760032248675,-500.0,0.00016712,2]
[390371184,1760032248684,-993.5,0.00016712,2]
[390371186,1760032248693,-500.0,0.00016712,2]
[390371188,1760032248702,-500.0,0.00016712,2]
[390371190,1760032248711,-500.0,0.00016712,2]
[390371192,1760032248719,-700.59,0.00016712,2]
[390371194,1760032248729,-500.0,0.00016712,2]
[390371196,1760032248738,-500.0,0.00016712,2]
[390371198,1760032248748,-500.0,0.00016712,2]
[390371200,1760032248757,-500.0,0.00016712,2]
[390371202,1760032248766,-500.0,0.00016712,2]
[390371204,1760032248776,-500.0,0.00016712,2]
[390371206,1760032248784,-500.0,0.00016712,2]
[390371208,1760032248793,-975.02,0.00016712,2]
[390371210,1760032248802,-588.43950295,0.00016712,2]
[390371212,1760032248812,-500.0,0.00016712,2]
[390371214,1760032248821,-500.0,0.00016712,2]
[390371216,1760032248830,-571.89,0.00016712,2]
[390371218,1760032248840,-287.47748285,0.00016712,2]
[390371220,1760032248849,-500.0,0.00016712,2]
[390371222,1760032248859,-158.4663731,0.00016712,2]
[390371224,1760032248869,-500.0,0.00016712,2]
[390371226,1760032248878,-525.29,0.00016712,2]
[390371228,1760032248887,-500.0,0.00016712,2]
[390371230,1760032248897,-500.0,0.00016712,2]
[390371232,1760032248906,-250.11,0.00016712,2]
[390371234,1760032248918,-569.77,0.00016712,2]
[390371236,1760032248927,-1300.9,0.00016712,2]
[390371238,1760032248938,-500.0,0.00016712,2]
[390371240,1760032248953,-500.0,0.00016712,2]
[390371242,1760032248962,-905.96,0.00016712,2]
[390371244,1760032248973,-500.0,0.00016712,2]
[390371246,1760032248982,-500.0,0.00016712,2]
[390371248,1760032248993,-196.25,0.00016712,2]
[390371250,1760032249002,-500.0,0.00016712,2]
[390371252,1760032249011,-500.0,0.00016712,2]
[390371254,1760032249020,-500.0,0.00016712,2]
[390371256,1760032249029,-578.68,0.00016712,2]
[390371258,1760032249038,-500.0,0.00016712,2]
[390371260,1760032249048,-500.0,0.00016712,2]
[390371262,1760032249057,-314.43,0.00016712,2]
[390371264,1760032249067,-500.0,0.00016712,2]
[390371266,1760032249076,-500.0,0.00016712,2]
[390371267,1760032249086,-238.79,0.00016712,2]
[390371269,1760032249096,-500.0,0.00016712,2]
[390371271,1760032249105,-806.43,0.00016712,2]
[390371273,1760032249114,-500.0,0.00016712,2]
[390371275,1760032249123,-460.59,0.00016712,2]
[390371277,1760032249132,-339.01,0.00016712,2]
[390371279,1760032249141,-500.0,0.00016712,2]
[390371281,1760032249150,-500.0,0.00016712,2]
[390371283,1760032249159,-500.0,0.00016712,2]
[390371285,1760032249167,-500.0,0.00016712,2]
[390371287,1760032249177,-1180.17,0.00016712,2]
[390371289,1760032249185,-500.0,0.00016712,2]
[390371291,1760032249194,-500.0,0.00016712,2]
[390371292,1760032249203,-335.82148432,0.00016712,2]
[390371294,1760032249212,-726.41,0.00016712,2]
[390371296,1760032249221,-658.58,0.00016712,2]
[390371298,1760032249232,-500.0,0.00016712,2]
[390371300,1760032249240,-500.0,0.00016712,2]
[390371302,1760032249250,-500.0,0.00016712,2]
[390371304,1760032249259,-500.0,0.00016712,2]
[390371306,1760032249268,-834.59,0.00016712,2]
[390371308,1760032249277,-695.63,0.00016712,2]
[390371310,1760032249286,-500.0,0.00016712,2]
[390371312,1760032249295,-500.0,0.00016712,2]
[390371314,1760032249304,-624.4,0.00016712,2]
[390371315,1760032249313,-2096.59,0.00016712,2]
[390371317,1760032249322,-836.97,0.00016712,2]
[390371319,1760032249332,-500.0,0.00016712,2]
[390371321,1760032249341,-500.0,0.00016712,2]
[390371323,1760032249350,-500.0,0.00016712,2]
[390371325,1760032249360,-350.06862821,0.00016712,2]
[390371327,1760032249369,-161.82,0.00016712,2]
[390371329,1760032249378,-178.18037309,0.00016712,2]
[390371331,1760032249387,-796.58,0.00016712,2]
[390371333,1760032249396,-336.91,0.00016712,2]
[390371335,1760032249405,-392.09322738,0.00016712,2]
[390371337,1760032249414,-500.0,0.00016712,2]
[390371338,1760032249423,-500.0,0.00016712,2]
[390371340,1760032249432,-1002.91,0.00016712,2]
[390371342,1760032249442,-500.0,0.00016712,2]
[390371344,1760032249452,-4599.23,0.00016712,2]
[390371346,1760032249462,-849.82,0.00016712,2]
[390371348,1760032249472,-500.0,0.00016712,2]
[390371350,1760032249481,-633.42514965,0.00016712,2]
[390371352,1760032249491,-511.54,0.00016712,2]
[390371354,1760032249500,-500.0,0.00016712,2]
[390371356,1760032249509,-1589.21,0.00016712,2]
[390371358,1760032249519,-5967.16,0.00016712,2]
[390371377,1760032249698,-500.0,0.00016712,2]
[390371379,1760032249708,-2413.16,0.00016712,2]
[390371381,1760032249718,-539.76,0.00016712,2]
[390371383,1760032249727,-500.0,0.00016712,2]
[390371385,1760032249736,-500.0,0.00016712,2]
[390371386,1760032249745,-500.0,0.00016712,2]
[390371388,1760032249755,-1656.72,0.00016712,2]
[390371390,1760032249764,-1158.22,0.00016712,2]
[390371392,1760032249775,-1916.39,0.00016712,2]
[390371394,1760032249784,-654.36,0.00016712,2]
[390371396,1760032249793,-895.21,0.00016712,2]
[390371398,1760032249802,-283.32,0.00016712,2]
[390371400,1760032249812,-1087.8,0.00016712,2]
[390371402,1760032249822,-465.03,0.00016712,2]
[390371404,1760032249832,-500.0,0.00016712,2]
[390371406,1760032249845,-186.11,0.00016712,2]
[390371408,1760032249855,-1787.1,0.00016712,2]
[390371410,1760032249864,-500.0,0.00016712,2]
[390371412,1760032249873,-526.42,0.00016712,2]
[390371414,1760032249883,-500.0,0.00016712,2]
[390371416,1760032249892,-500.0,0.00016712,2]
[390371418,1760032249902,-669.14,0.00016712,2]
[390371420,1760032249913,-500.0,0.00016712,2]
[390371422,1760032249922,-687.95,0.00016712,2]
[390371424,1760032249931,-513.61,0.00016712,2]
[390371426,1760032249940,-714.48,0.00016712,2]
[390371427,1760032249951,-500.0,0.00016712,2]
[390371429,1760032249960,-916.57,0.00016712,2]
[390371430,1760032249969,-500.0,0.00016712,2]
[390371431,1760032249978,-516.03,0.00016712,2]
[390371432,1760032249989,-772.16,0.00016712,2]
[390371433,1760032249998,-580.02,0.00016712,2]
[390371434,1760032250008,-518.85,0.00016712,2]
[390371435,1760032250017,-3271.62,0.00016712,2]
[390371436,1760032250027,-500.0,0.00016712,2]
[390371437,1760032250036,-500.0,0.00016712,2]
[390371438,1760032250048,-500.0,0.00016712,2]
[390371439,1760032250059,-193.59,0.00016712,2]
[390371440,1760032250068,-500.0,0.00016712,2]
[390371441,1760032250077,-537.246658,0.00016712,2]
[390371442,1760032250087,-518.4,0.00016712,2]
[390371443,1760032250096,-537.246658,0.00016712,2]
[390371444,1760032250105,-1739.15,0.00016712,2]
[390371445,1760032250114,-537.246658,0.00016712,2]
[390371446,1760032250123,-537.246658,0.00016712,2]
[390371447,1760032250132,-627.5,0.00016712,2]
[390371448,1760032250141,-771.2,0.00016712,2]
[390371449,1760032250150,-599.25645835,0.00016712,2]
[390371450,1760032250159,-647.12,0.00016712,2]
[390371452,1760032250168,-184.4080362,0.00016712,2]
[390371454,1760032250177,-1683.54,0.00016712,2]
[390371456,1760032250186,-607.24,0.00016712,2]
[390371458,1760032250195,-500.0,0.00016712,2]
[390371460,1760032250203,-500.0,0.00016712,2]
[390371462,1760032250213,-1874.07,0.00016712,2]
[390371463,1760032250222,-1857.75,0.00016712,2]
[390371466,1760032250231,-2208.79,0.00016712,2]
[390371468,1760032250240,-500.0,0.00016712,2]
[390371470,1760032250249,-151.0,0.00016712,2]
[390371472,1760032250258,-500.0,0.00016712,2]
[390371473,1760032250267,-151.0,0.00016712,2]
[390371475,1760032250276,-187.52284845,0.00016712,2]
[390371477,1760032250285,-1951.45,0.00016712,2]
[390371479,1760032250294,-151.0,0.00016712,2]
[390371481,1760032250303,-914.87,0.00016712,2]
[390371483,1760032250312,-500.0,0.00016712,2]
[390371485,1760032250321,-500.0,0.00016712,2]
[390371487,1760032250332,-500.0,0.00016712,2]
[390371489,1760032250341,-500.0,0.00016712,2]
[390371491,1760032250355,-151.06608,0.00016712,2]
[390371493,1760032250365,-500.0,0.00016712,2]
[390371495,1760032250375,-2880.45,0.00016712,2]
[390371497,1760032250384,-753.81,0.00016712,2]
[390371499,1760032250393,-3431.86,0.00016712,2]
[390371501,1760032250402,-2088.23,0.00016712,2]
[390371503,1760032250411,-334.361,0.00016804,2]
[390371505,1760032250420,-288.0,0.00016815,2]
[390371507,1760032250429,-322.53435054,0.00016829,2]
[390371509,1760032250438,-190.0,0.00016881,2]
[390371511,1760032250449,-240.5916,0.00016886,2]
[390371513,1760032250458,-240.5916,0.00016886,2]
[390371515,1760032250468,-240.5916,0.00016886,2]
[390371517,1760032250477,-240.5916,0.00016886,2]
[390371519,1760032250486,-10000.0,0.00016886,2]
[390371521,1760032250495,-483.17220707,0.00016891,2]
[390371523,1760032250504,-785.637891,0.00016914,2]
[390371525,1760032250514,-203.79804618,0.00016965,2]
[390371527,1760032250523,-161.77366655,0.00016985,2]
[390371529,1760032250532,-203.51608778,0.00016985,2]
[390371531,1760032250541,-500.0,0.00016986,2]
[390371533,1760032250551,-151.0,0.00016986,2]
[390371535,1760032250559,-500.0,0.00016986,2]
[390371537,1760032250569,-151.0,0.00016986,2]
[390371539,1760032250579,-500.0,0.00016986,2]
[390371541,1760032250590,-500.0,0.00016986,2]
[390371544,1760032250602,-500.0,0.00016986,2]
[390371546,1760032250611,-500.0,0.00016986,2]
[390371548,1760032250620,-993.5,0.00016986,2]
[390371550,1760032250629,-500.0,0.00016986,2]
[390371552,1760032250639,-373.72777013,0.00016986,2]
[390371554,1760032250650,-700.59,0.00016986,2]
[390371556,1760032250659,-500.0,0.00016986,2]
[390371558,1760032250669,-500.0,0.00016986,2]
[390371560,1760032250677,-500.0,0.00016986,2]
[390371562,1760032250687,-500.0,0.00016986,2]
[390371564,1760032250696,-500.0,0.00016986,2]
[390371566,1760032250706,-500.0,0.00016986,2]
[390371568,1760032250715,-500.0,0.00016986,2]
[390371570,1760032250724,-975.02,0.00016986,2]
[390371572,1760032250733,-500.0,0.00016986,2]
[390371574,1760032250742,-500.0,0.00016986,2]
[390371576,1760032250751,-571.89,0.00016986,2]
[390371578,1760032250760,-500.0,0.00016986,2]
[390371579,1760032250770,-500.0,0.00016986,2]
[390371582,1760032250780,-525.29,0.00016986,2]
[390371583,1760032250790,-574.61,0.00016986,2]
[390371585,1760032250799,-500.0,0.00016986,2]
[390371587,1760032250808,-569.77,0.00016986,2]
[390371589,1760032250818,-1300.9,0.00016986,2]
[390371591,1760032250827,-500.0,0.00016986,2]
[390371593,1760032250838,-500.0,0.00016986,2]
[390371595,1760032250847,-905.96,0.00016986,2]
[390371597,1760032250856,-500.0,0.00016986,2]
[390371599,1760032250865,-500.0,0.00016986,2]
[390371601,1760032250874,-500.0,0.00016986,2]
[390371603,1760032250883,-500.0,0.00016986,2]
[390371605,1760032250892,-500.0,0.00016986,2]
[390371607,1760032250902,-500.0,0.00016986,2]
[390371609,1760032250914,-381.08172558,0.00016986,2]
[390371611,1760032250923,-500.0,0.00016986,2]
[390371613,1760032250932,-500.0,0.00016986,2]
[390371615,1760032250942,-806.43,0.00016986,2]
[390371617,1760032250952,-386.13036651,0.00016986,2]
[390371619,1760032250961,-562.19709713,0.00016986,2]
[390371621,1760032250971,-500.0,0.00016986,2]
[390371623,1760032250980,-500.0,0.00016986,2]
[390371625,1760032250991,-500.0,0.00016986,2]
[390371627,1760032251000,-500.0,0.00016986,2]
[390371629,1760032251009,-1180.17,0.00016986,2]
[390371631,1760032251019,-500.0,0.00016986,2]
[390371633,1760032251028,-500.0,0.00016986,2]
[390371635,1760032251038,-860.61,0.00016986,2]
[390371637,1760032251047,-726.41,0.00016986,2]
[390371639,1760032251056,-658.58,0.00016986,2]
[390371642,1760032251067,-500.0,0.00016986,2]
[390371644,1760032251076,-500.0,0.00016986,2]
[390371645,1760032251086,-500.0,0.00016986,2]
[390371647,1760032251096,-500.0,0.00016986,2]
[390371649,1760032251105,-834.59,0.00016986,2]
[390371651,1760032251114,-695.63,0.00016986,2]
[390371653,1760032251123,-500.0,0.00016986,2]
[390371655,1760032251133,-500.0,0.00016986,2]
[390371657,1760032251142,-624.4,0.00016986,2]
[390371659,1760032251152,-2096.59,0.00016986,2]
[390371661,1760032251162,-836.97,0.00016986,2]
[390371663,1760032251171,-500.0,0.00016986,2]
[390371665,1760032251181,-500.0,0.00016986,2]
[390371667,1760032251191,-500.0,0.00016986,2]
[390371669,1760032251201,-796.58,0.00016986,2]
[390371671,1760032251209,-500.0,0.00016986,2]
[390371673,1760032251219,-500.0,0.00016986,2]
[390371675,1760032251228,-1002.91,0.00016986,2]
[390371677,1760032251238,-500.0,0.00016986,2]
[390371679,1760032251248,-4599.23,0.00016986,2]
[390371681,1760032251257,-849.82,0.00016986,2]
[390371683,1760032251266,-500.0,0.00016986,2]
[390371685,1760032251275,-511.54,0.00016986,2]
[390371687,1760032251286,-500.0,0.00016986,2]
[390371689,1760032251295,-1589.21,0.00016986,2]
[390371691,1760032251305,-5967.16,0.00016986,2]
[390371693,1760032251315,-2413.16,0.00016986,2]
[390371695,1760032251324,-539.76,0.00016986,2]
[390371697,1760032251333,-500.0,0.00016986,2]
[390371699,1760032251343,-500.0,0.00016986,2]
[390371701,1760032251353,-500.0,0.00016986,2]
[390371703,1760032251363,-1656.72,0.00016986,2]
[390371705,1760032251372,-1158.22,0.00016986,2]
[390371707,1760032251382,-1916.39,0.00016986,2]
[390371709,1760032251392,-654.36,0.00016986,2]
[390371711,1760032251402,-895.21,0.00016986,2]
[390371713,1760032251411,-1087.8,0.00016986,2]
[390371715,1760032251421,-295.68015183,0.00016986,2]
[390371717,1760032251431,-1787.1,0.00016986,2]
[390371719,1760032251440,-500.0,0.00016986,2]
[390371721,1760032251450,-526.42,0.00016986,2]
[390371723,1760032251460,-209.6,0.00016986,2]
[390371725,1760032251469,-500.0,0.00016986,2]
[390371727,1760032251479,-669.14,0.00016986,2]
[390371729,1760032251488,-500.0,0.00016986,2]
[390371731,1760032251498,-687.95,0.00016986,2]
[390371733,1760032251508,-513.61,0.00016986,2]
[390371735,1760032251518,-714.48,0.00016986,2]
[390371737,1760032251528,-500.0,0.00016986,2]
[390371740,1760032251538,-916.57,0.00016986,2]
[390371741,1760032251547,-500.0,0.00016986,2]
[390371744,1760032251558,-516.03,0.00016986,2]
[390371746,1760032251569,-772.16,0.00016986,2]
[390371748,1760032251578,-580.02,0.00016986,2]
[390371750,1760032251588,-518.85,0.00016986,2]
[390371752,1760032251600,-3271.62,0.00016986,2]
[390371754,1760032251610,-500.0,0.00016986,2]
[390371756,1760032251619,-500.0,0.00016986,2]
[390371758,1760032251629,-500.0,0.00016986,2]
[390371760,1760032251638,-518.4,0.00016986,2]
[390371762,1760032251647,-1739.15,0.00016986,2]
[390371764,1760032251656,-627.5,0.00016986,2]
[390371766,1760032251666,-771.2,0.00016986,2]
[390371768,1760032251677,-647.12,0.00016986,2]
[390371770,1760032251687,-1683.54,0.00016986,2]
[390371772,1760032251696,-607.24,0.00016986,2]
[390371774,1760032251706,-500.0,0.00016986,2]
[390371776,1760032251715,-229.06470047,0.00016986,2]
[390371778,1760032251724,-1874.07,0.00016986,2]
[390371780,1760032251734,-1857.75,0.00016986,2]
[390371782,1760032251743,-2208.79,0.00016986,2]
[390371784,1760032251752,-500.0,0.00016986,2]
[390371786,1760032251761,-500.0,0.00016986,2]
[390371788,1760032251770,-1951.45,0.00016986,2]
[390371790,1760032251779,-151.0,0.00016986,2]
[390371792,1760032251788,-914.87,0.00016986,2]
[390371794,1760032251797,-500.0,0.00016986,2]
[390371796,1760032251806,-500.0,0.00016986,2]
[390371798,1760032251815,-500.0,0.00016986,2]
[390371800,1760032251824,-500.0,0.00016986,2]
[390371802,1760032251834,-482.63140758,0.00016986,2]
[390371804,1760032251842,-2880.45,0.00016986,2]
[390371806,1760032251851,-753.81,0.00016986,2]
[390371808,1760032251860,-3431.86,0.00016986,2]
[390371810,1760032251870,-2088.23,0.00016986,2]
[390371812,1760032251880,-190.0,0.00017003,2]
[390371814,1760032251889,-190.0,0.00017039,2]
[390371816,1760032251899,-190.0,0.00017059,2]
[390371817,1760032251911,-500.0,0.0001726,2]
[390371820,1760032251921,-151.0,0.0001726,2]
[390371821,1760032251932,-206.9919443,0.0001726,2]
[390371823,1760032251941,-151.0,0.0001726,2]
[390371825,1760032251950,-500.0,0.0001726,2]
[390371827,1760032251959,-151.0,0.0001726,2]
[390371829,1760032251968,-1641.41923604,0.0001726,2]
[390371831,1760032251977,-500.0,0.0001726,2]
[390371833,1760032251988,-500.0,0.0001726,2]
[390371835,1760032251997,-500.0,0.0001726,2]
[390371837,1760032252006,-464.70879306,0.0001726,2]
[390371839,1760032252015,-500.0,0.0001726,2]
[390371841,1760032252024,-151.0,0.0001726,2]
[390371843,1760032252032,-151.0,0.0001726,2]
[390371845,1760032252041,-151.0,0.0001726,2]
[390371847,1760032252050,-151.0,0.0001726,2]
[390371849,1760032252059,-151.0,0.0001726,2]
[390371851,1760032252068,-151.29688684,0.0001726,2]
[390371853,1760032252077,-151.0,0.0001726,2]
[390371856,1760032252087,-282.98338304,0.0001726,2]
[390371858,1760032252096,-365.13658323,0.0001726,2]
[390371860,1760032252106,-151.0,0.0001726,2]
[390371862,1760032252115,-151.0,0.0001726,2]
[390371864,1760032252124,-151.0,0.0001726,2]
[390371866,1760032252134,-151.0,0.0001726,2]
[390371868,1760032252144,-215.13416699,0.0001726,2]
[390371869,1760032252153,-993.5,0.0001726,2]
[390371872,1760032252163,-500.0,0.0001726,2]
[390371873,1760032252172,-700.59,0.0001726,2]
[390371875,1760032252181,-500.0,0.0001726,2]
[390371877,1760032252192,-500.0,0.0001726,2]
[390371879,1760032252201,-532.09055226,0.0001726,2]
[390371881,1760032252210,-500.0,0.0001726,2]
[390371883,1760032252219,-500.0,0.0001726,2]
[390371885,1760032252228,-500.0,0.0001726,2]
[390371887,1760032252237,-240.5916,0.0001726,2]
[390371889,1760032252246,-240.5916,0.0001726,2]
[390371891,1760032252255,-240.5916,0.0001726,2]
[390371893,1760032252264,-240.5916,0.0001726,2]
[390371895,1760032252273,-500.0,0.0001726,2]
[390371897,1760032252282,-975.02,0.0001726,2]
[390371899,1760032252291,-500.0,0.0001726,2]
[390371901,1760032252300,-500.0,0.0001726,2]
[390371903,1760032252309,-571.89,0.0001726,2]
[390371905,1760032252318,-500.0,0.0001726,2]
[390371907,1760032252327,-500.0,0.0001726,2]
[390371909,1760032252337,-525.29,0.0001726,2]
[390371911,1760032252346,-500.0,0.0001726,2]
[390371913,1760032252355,-569.77,0.0001726,2]
[390371915,1760032252363,-1300.9,0.0001726,2]
[390371917,1760032252372,-500.0,0.0001726,2]
[390371919,1760032252381,-284.86792555,0.0001726,2]
[390371921,1760032252390,-905.96,0.0001726,2]
[390371923,1760032252399,-500.0,0.0001726,2]
[390371925,1760032252408,-500.0,0.0001726,2]
[390371927,1760032252418,-500.0,0.0001726,2]
[390371930,1760032252428,-1032.0,0.0001726,2]
[390371932,1760032252437,-151.0,0.0001726,2]
[390371934,1760032252446,-500.0,0.0001726,2]
[390371936,1760032252455,-151.0,0.0001726,2]
[390371938,1760032252464,-500.0,0.0001726,2]
[390371940,1760032252473,-500.0,0.0001726,2]
[390371942,1760032252482,-594.69600656,0.0001726,2]
[390371944,1760032252491,-151.0,0.0001726,2]
[390371946,1760032252500,-421.1880325,0.0001726,2]